bitfinex/quotes_SOLUSD_20251116
["timestamp","ask_amount","ask_price","bid_price","bid_amount"]
[1763309142691,0.71,138.3,138.22,23.3312]
[1763309142887,18.58888937,138.29,138.22,16.71479312]
[1763309143194,10.49882769,138.29,138.24,8.80006168]
[1763309143480,9.71006168,138.33,138.24,9.78882769]
[1763309143699,9.71006168,138.33,138.22,25.32183894]
[1763309143700,10.49882769,138.32,138.25,22.6512]
[1763309143981,19.29888937,138.32,138.26,8.80006168]
[1763309144176,0.71,138.31,138.26,8.80006168]
[1763309144853,9.51006168,138.31,138.24,7.94334119]
[1763309145193,0.2,138.33,138.27,22.6512]
[1763309145493,0.2,138.33,138.29,8.80006168]
[1763309145696,0.2,138.33,138.27,22.6512]
[1763309145697,0.71,138.32,138.27,22.6512]
[1763309145985,18.58888937,138.31,138.25,8.80006168]
[1763309146189,9.51006168,138.32,138.27,22.6512]
[1763309146365,0.71,138.32,138.24,22.6512]
[1763309146573,0.71,138.32,138.14,50.0]
[1763309146574,8.80006168,138.28,138.22,8.80006168]
[1763309146890,8.80006168,138.29,138.23,7.23431961]
[1763309147053,8.80006168,138.3,138.23,7.94431961]
[1763309147250,8.80006168,138.3,138.24,8.80006168]
[1763309147452,0.71,138.31,138.24,8.80006168]
[1763309147761,18.58888937,138.3,138.24,8.80006168]
[1763309147970,0.71,138.31,138.25,8.80006168]
[1763309148270,32.44002769,138.32,138.23,25.32011864]
[1763309148271,8.80006168,138.29,138.23,16.03438129]
[1763309148788,29.88083957,138.32,138.21,23.3612]
[1763309148789,8.80006168,138.27,138.21,8.80006168]
[1763309148989,8.80006168,138.27,138.21,7.23527501]
[1763309148990,8.80006168,138.26,138.21,7.23527501]
[1763309149145,9.51006168,138.27,138.21,34.12375286]
[1763309149552,7.94274989,138.26,138.16,9.78882769]
[1763309149782,7.94274989,138.26,138.15,0.71]
[1763309149783,8.80006168,138.22,138.15,0.71]
[1763309150181,8.80006168,138.21,138.18,22.6512]
[1763309150356,8.80006168,138.2,138.15,7.23807101]
[1763309150558,0.71,138.19,138.14,31.45126168]
[1763309151067,9.78882769,138.22,138.16,8.80006168]
[1763309151254,8.80006168,138.2,138.14,31.45126168]
[1763309151507,8.80006168,138.19,138.12,9.51006168]
[1763309151784,1.99999999,138.29,138.15,8.80006168]
[1763309151987,0.71,138.23,138.17,22.7512]
[1763309152152,8.80006168,138.21,138.17,22.7512]
[1763309152356,8.80006168,138.2,138.17,22.7512]
[1763309152585,9.78882769,138.2,138.17,0.1]
[1763309152799,9.51006168,138.2,138.17,0.1]
[1763309153352,9.51006168,138.2,138.17,22.7512]
[1763309153553,18.58888937,138.2,138.17,0.1]
[1763309153782,0.71,138.19,138.17,0.1]
[1763309154157,7.23491325,138.22,138.17,0.1]
[1763309154158,0.71,138.22,138.17,0.1]
[1763309154355,8.80006168,138.22,138.17,22.7512]
[1763309154582,0.71,138.26,138.18,32.16126168]
[1763309154785,18.58888937,138.25,138.19,8.80006168]
[1763309154974,9.78882769,138.25,138.2,8.80006168]
[1763309155489,9.78882769,138.25,138.21,7.23536647]
[1763309155490,10.49882769,138.25,138.21,7.23536647]
[1763309155857,19.29888937,138.25,138.2,7.23576171]
[1763309156088,0.71,138.24,138.18,23.3612]
[1763309156300,22.6512,138.28,138.2,8.80006168]
[1763309156301,0.71,138.28,138.2,8.80006168]
[1763309156460,22.6512,138.3,138.2,8.80006168]
[1763309156461,9.78882769,138.25,138.2,8.80006168]
[1763309156968,9.78882769,138.25,138.19,0.71]
[1763309156969,0.71,138.24,138.19,8.80006168]
[1763309157432,9.51006168,138.24,138.18,29.88809854]
[1763309157753,9.78882769,138.23,138.18,31.45126168]
[1763309158038,10.49882769,138.23,138.18,31.45126168]
[1763309158246,0.71,138.22,138.18,29.8881021]
[1763309158851,0.71,138.22,138.18,29.88804503]
[1763309159421,0.71,138.22,138.18,47.98038835]
[1763309159624,8.80006168,138.19,138.17,0.1]
[1763309159928,19.29888937,138.21,138.17,7.33729828]
[1763309160106,9.51006168,138.2,138.17,0.1]
[1763309160300,18.58888937,138.19,138.17,0.1]
[1763309160504,8.80006168,138.21,138.17,7.33743438]
[1763309160726,0.71,138.2,138.17,7.33743438]
[1763309160904,9.78882769,138.19,138.17,0.1]
[1763309161115,0.71,138.2,138.17,0.1]
[1763309161321,9.78882769,138.21,138.17,0.1]
[1763309161522,9.78882769,138.24,138.19,6.366662]
[1763309162051,0.71,138.24,138.17,84.6612]
[1763309162256,0.71,138.23,138.19,6.366662]
[1763309162471,0.71,138.23,138.18,6.366662]
[1763309162747,0.71,138.23,138.19,6.366662]
[1763309162922,9.78882769,138.22,138.19,61.2]
[1763309163422,0.71,138.21,138.19,68.43620672]
[1763309163618,7.076662,138.21,138.17,0.1]
[1763309163949,7.076662,138.21,138.08,36.20880609]
[1763309163950,9.78882769,138.17,138.1,0.71]
[1763309164120,16.15548969,138.18,138.11,0.71]
[1763309164317,16.15548969,138.15,138.08,0.71]
[1763309164546,6.366662,138.14,138.08,7.076662]
[1763309164746,6.366662,138.11,138.05,7.24356869]
[1763309164927,6.366662,138.18,138.04,0.71]
[1763309164928,9.78882769,138.15,138.1,6.366662]
[1763309165127,9.78882769,138.15,138.06,0.71]
[1763309165128,9.78882769,138.18,138.13,6.366662]
[1763309165437,9.78882769,138.18,138.11,0.71]
[1763309165438,16.15548969,138.18,138.12,6.366662]
[1763309165748,9.78882769,138.16,138.11,0.71]
[1763309166043,22.6512,138.2,138.12,6.366662]
[1763309166237,9.78882769,138.18,138.07,0.71]
[1763309166436,16.15548969,138.13,138.05,0.71]
[1763309166649,9.78882769,138.13,138.05,0.71]
[1763309166851,7.076662,138.14,138.07,29.017862]
[1763309167022,9.78882769,138.17,138.07,22.6512]
[1763309167227,9.78882769,138.17,138.08,0.71]
[1763309167440,6.366662,138.14,138.07,36.26053595]
[1763309167749,9.78882769,138.15,138.08,0.71]
[1763309167938,6.366662,138.14,138.08,0.71]
[1763309168141,0.71,138.15,138.09,6.366662]
[1763309168335,7.076662,138.15,138.09,6.366662]
[1763309168649,7.076662,138.15,138.1,6.366662]
[1763309168859,7.076662,138.15,138.09,6.366662]
[1763309169057,0.71,138.15,138.1,6.366662]
[1763309169237,33.15002769,138.17,138.1,6.366662]
[1763309169429,6.366662,138.19,138.13,6.366662]
[1763309169650,0.71,138.26,138.18,6.366662]
[1763309169970,0.71,138.26,138.17,6.366662]
[1763309169971,9.78882769,138.22,138.17,6.366662]
[1763309170129,0.71,138.26,138.16,22.6512]
[1763309170130,6.366662,138.23,138.18,6.366662]
[1763309170328,6.366662,138.24,138.18,6.366662]
[1763309170525,6.366662,138.25,138.2,6.366662]
[1763309170951,6.366662,138.25,138.14,22.6512]
[1763309171149,6.366662,138.32,138.23,6.366662]
[1763309171150,6.366662,138.28,138.23,6.366662]
[1763309171330,13.59848882,138.28,138.22,13.601505]
[1763309171647,6.366662,138.27,138.22,14.311505]
[1763309171833,6.366662,138.29,138.24,6.366662]
[1763309172226,16.15548969,138.28,138.23,7.076662]
[1763309172455,16.15548969,138.28,138.22,25.3219505]
[1763309172456,16.15548969,138.27,138.22,13.601505]
[1763309172665,9.78882769,138.25,138.22,7.234843]
[1763309173167,0.71,138.26,138.21,13.60188473]
[1763309173468,7.076662,138.26,138.21,13.60188473]
[1763309173674,16.15548969,138.23,138.17,0.68]
[1763309173969,6.366662,138.21,138.15,6.366662]
[1763309174130,9.78882769,138.24,138.13,7.046662]
[1763309174131,6.366662,138.18,138.13,7.046662]
[1763309174327,6.366662,138.17,138.11,6.366662]
[1763309174543,6.366662,138.16,138.1,6.366662]
[1763309174758,9.78882769,138.16,138.12,29.017862]
[1763309174965,8.36666199,138.25,138.14,6.366662]
[1763309174966,10.49882769,138.2,138.14,6.366662]
[1763309175261,16.15548969,138.2,138.15,6.366662]
[1763309175464,16.15548969,138.2,138.15,7.086662]
[1763309175652,0.71,138.23,138.16,7.086662]
[1763309175856,6.366662,138.21,138.16,7.086662]
[1763309176055,0.71,138.26,138.18,6.366662]
[1763309176257,6.366662,138.23,138.18,6.366662]
[1763309176456,39.6736701,138.25,138.15,13.60506521]
[1763309176457,16.15548969,138.2,138.15,13.60506521]
[1763309176638,6.366662,138.19,138.14,36.25683468]
[1763309176833,16.15548969,138.18,138.13,7.23930517]
[1763309177736,16.15548969,138.18,138.13,13.60596717]
[1763309178458,16.15548969,138.18,138.13,14.32596717]
[1763309178759,16.15548969,138.18,138.13,13.60596717]
[1763309178950,16.15548969,138.18,138.13,14.32596717]
[1763309179356,6.366662,138.17,138.13,7.23930517]
[1763309179545,9.78882769,138.16,138.1,6.366662]
[1763309179749,6.366662,138.13,138.08,6.366662]
[1763309179972,9.78882769,138.13,138.07,6.366662]
[1763309180266,9.78882769,138.13,138.06,0.72]
[1763309180267,16.15548969,138.11,138.06,6.366662]
[1763309180431,9.78882769,138.11,138.06,6.366662]
[1763309180636,16.15548969,138.11,138.06,7.086662]
[1763309180874,9.78882769,138.11,138.06,7.086662]
[1763309181040,6.366662,138.12,138.07,0.72]
[1763309181239,6.366662,138.12,138.07,7.086662]
[1763309181472,6.366662,138.12,138.08,7.24217844]
[1763309181842,6.366662,138.1,138.07,7.24252833]
[1763309182150,10.49882769,138.11,138.05,6.366662]
[1763309182151,6.366662,138.09,138.05,7.2433257]
[1763309182395,6.366662,138.08,138.04,29.89531664]
[1763309182667,6.366662,138.08,138.03,0.1]
[1763309182832,6.366662,138.07,138.03,7.34467491]
[1763309183036,6.366662,138.05,138.03,0.1]
[1763309183347,6.366662,138.06,138.03,0.1]
[1763309183752,16.15548969,138.05,138.03,0.1]
[1763309184161,9.78882769,138.04,138.03,0.1]
[1763309184550,23.3612,138.1,138.03,0.82]
[1763309184747,9.78882769,138.07,138.03,7.186662]
[1763309184971,16.15548969,138.07,138.03,0.82]
[1763309185171,16.15548969,138.07,138.03,0.1]
[1763309185347,6.366662,138.06,138.03,0.1]
[1763309185547,6.366662,138.06,138.03,7.34480185]
[1763309185876,9.78882769,138.07,138.04,0.72]
[1763309186047,9.78882769,138.07,138.03,25.45680648]
[1763309186244,6.366662,138.06,138.03,0.1]
[1763309186468,6.366662,138.08,138.04,0.72]
[1763309186674,6.366662,138.08,138.03,29.117862]
[1763309186869,6.366662,138.07,138.03,22.7512]
[1763309187049,16.15548969,138.06,138.03,0.1]
[1763309187571,9.78882769,138.06,138.03,0.1]
[1763309187747,16.15548969,138.07,138.03,0.1]
[1763309188576,6.366662,138.06,138.03,0.1]
[1763309188780,16.15548969,138.07,138.03,0.82]
[1763309189076,16.15548969,138.04,138.03,0.1]
[1763309189588,25.35680648,138.03,137.94,0.72]
[1763309189901,9.78882769,138.02,137.95,36.26686526]
[1763309190068,6.366662,138.0,137.95,29.90020326]
[1763309190271,6.366662,138.0,137.95,36.98686526]
[1763309190596,0.71,138.07,137.99,6.366662]
[1763309190767,6.366662,138.04,137.99,6.366662]
[1763309190949,9.78882769,138.06,138.0,23.3712]
[1763309191172,9.78882769,138.06,138.02,6.366662]
[1763309191501,9.78882769,138.06,138.0,22.6512]
[1763309191502,9.78882769,138.07,138.0,0.72]
[1763309191801,6.366662,138.06,138.01,13.61251374]
[1763309191978,6.366662,138.06,138.02,6.366662]
[1763309192168,6.366662,138.05,138.0,22.6512]
[1763309192373,9.78882769,138.04,138.0,29.017862]
[1763309192573,9.78882769,138.04,138.0,29.737862]
[1763309193193,9.78882769,138.05,138.01,7.086662]
[1763309193698,9.78882769,138.05,138.02,7.24532676]
[1763309194079,16.15548969,138.05,138.01,7.96570516]
[1763309194397,9.78882769,138.02,137.98,29.017862]
[1763309194580,9.78882769,138.0,137.97,7.24779393]
[1763309194774,16.15548969,138.0,137.96,22.6512]
[1763309195109,16.15548969,138.0,137.96,30.61952432]
[1763309195278,9.78882769,138.0,137.96,36.98618632]
[1763309195592,9.78882769,138.0,137.96,30.61952432]
[1763309195902,6.366662,138.0,137.96,48.74071886]
[1763309196082,6.366662,138.0,137.96,22.6512]
[1763309196286,9.78882769,138.0,137.96,36.98613836]
[1763309196604,9.78882769,138.04,137.99,22.6512]
[1763309196908,7.076662,138.05,137.99,29.017862]
[1763309197223,22.6512,138.09,138.0,0.72]
[1763309197224,9.06882769,138.06,138.0,0.72]
[1763309197504,0.71,138.15,138.08,22.6512]
[1763309197704,7.23431961,138.23,138.1,6.366662]
[1763309197996,22.6512,138.15,138.06,7.96314954]
[1763309198187,6.366662,138.11,138.06,29.017862]
[1763309198389,22.6512,138.15,138.06,29.017862]
[1763309198390,0.71,138.14,138.06,29.017862]
[1763309198591,6.366662,138.18,138.09,29.017862]
[1763309198798,6.366662,138.15,138.07,23.3712]
[1763309199103,0.71,138.16,138.07,22.6512]
[1763309199104,6.366662,138.13,138.07,22.6512]
[1763309199302,9.78882769,138.12,138.08,6.366662]
[1763309199475,0.71,138.15,138.08,6.366662]
[1763309199476,0.71,138.17,138.1,6.366662]
[1763309199673,9.23458422,138.23,138.07,22.6512]
[1763309199674,7.076662,138.16,138.11,6.366662]
[1763309199874,7.076662,138.15,138.11,7.24020201]
[1763309200077,16.15548969,138.14,138.07,22.6512]
[1763309200278,9.78882769,138.12,138.08,13.60884044]
[1763309200478,16.15548969,138.12,138.08,7.24217844]
[1763309200682,6.366662,138.14,138.1,6.366662]
[1763309200875,81.34196519,138.25,138.09,0.72]
[1763309200876,9.78882769,138.16,138.09,0.72]
[1763309201088,0.71,138.26,138.11,22.6512]
[1763309201279,33.75992914,138.29,138.14,10.1424501]
[1763309201280,10.1424501,138.19,138.14,10.1424501]
[1763309201606,22.6512,138.21,138.13,10.1424501]
[1763309201803,10.1424501,138.18,138.14,10.1424501]
[1763309202005,10.1424501,138.18,138.14,7.2386598]
[1763309202185,9.78882769,138.17,138.14,10.1424501]
[1763309203370,0.71,138.18,138.14,10.1424501]
[1763309203575,20.63127779,138.17,138.13,10.1424501]
[1763309203788,19.93127779,138.15,138.11,22.6512]
[1763309203989,9.78882769,138.13,138.1,17.38355677]
[1763309204391,9.78882769,138.13,138.1,10.1424501]
[1763309204594,92.03906664,138.26,138.11,26.02211859]
[1763309204595,23.3512,138.2,138.11,26.02211859]
[1763309204785,19.93127779,138.15,138.11,18.06305541]
[1763309204979,19.93127779,138.15,138.09,22.6512]
[1763309204980,10.1424501,138.14,138.09,22.6512]
[1763309205178,9.78882769,138.13,138.1,10.1424501]
[1763309205476,0.7,138.15,138.11,10.1424501]
[1763309205477,9.78882769,138.15,138.11,10.1424501]
[1763309205679,9.78882769,138.13,138.1,10.1424501]
[1763309205879,9.78882769,138.13,138.09,22.6512]
[1763309205880,10.1424501,138.12,138.09,22.6512]
[1763309206080,9.78882769,138.11,138.09,22.6512]
[1763309206577,19.93127779,138.11,138.09,22.6512]
[1763309206796,9.78882769,138.11,138.07,17.38502997]
[1763309207684,9.78882769,138.11,138.08,10.1424501]
[1763309208205,9.78882769,138.11,138.02,0.68]
[1763309208206,19.93127779,138.09,138.02,0.68]
[1763309208508,10.1424501,138.09,138.04,10.1424501]
[1763309208806,19.93127779,138.08,138.03,32.7936501]
[1763309209104,20.63127779,138.08,138.03,10.1424501]
[1763309209803,10.48882769,138.08,138.03,10.1424501]
[1763309210003,10.48882769,138.08,138.04,10.1424501]
[1763309210179,10.48882769,138.08,138.04,17.38661813]
[1763309211082,10.48882769,138.08,138.04,10.1424501]
[1763309211298,10.48882769,138.08,138.04,17.38660366]
[1763309211508,0.7,138.12,138.05,0.68]
[1763309211787,9.78882769,138.1,138.07,22.6512]
[1763309212102,9.78882769,138.1,138.07,101.2359197]
[1763309212303,9.78882769,138.1,138.07,91.0934696]
[1763309212613,9.78882769,138.11,138.08,10.1424501]
[1763309212924,9.78882769,138.12,138.08,10.1424501]
[1763309213083,19.93127779,138.1,138.07,83.8512]
[1763309213426,0.7,138.15,138.09,10.1424501]
[1763309213706,0.7,138.15,138.1,10.1424501]
[1763309213707,9.78882769,138.14,138.1,10.1424501]
[1763309214417,9.78882769,138.14,138.02,9.78882769]
[1763309214418,19.93127779,138.12,138.05,0.68]
[1763309214714,19.93127779,138.12,138.07,10.1424501]
[1763309214715,10.1424501,138.11,138.07,10.1424501]
[1763309214927,20.63127779,138.12,138.05,23.3312]
[1763309215107,9.78882769,138.1,138.07,10.1424501]
[1763309215687,10.8424501,138.12,138.08,10.1424501]
[1763309215688,9.78882769,138.11,138.08,10.1424501]
[1763309216020,9.78882769,138.11,138.05,23.3312]
[1763309216197,9.78882769,138.11,138.08,10.1424501]
[1763309216402,9.78882769,138.11,138.07,10.1424501]
[1763309216595,10.48882769,138.11,138.07,10.1424501]
[1763309217094,9.78882769,138.12,138.08,10.8224501]
[1763309217297,9.78882769,138.12,138.08,10.1424501]
[1763309217525,0.7,138.11,138.07,10.1424501]
[1763309217707,9.78882769,138.1,138.06,35.49374663]
[1763309218012,9.78882769,138.1,138.06,25.35129653]
[1763309218196,9.78882769,138.1,138.07,10.1424501]
[1763309219086,9.78882769,138.1,138.08,7.24217844]
[1763309219487,9.78882769,138.1,138.07,10.1424501]
[1763309220110,10.48882769,138.1,138.07,7.24267233]
[1763309220418,9.78882769,138.1,138.07,7.24267233]
[1763309220801,9.78882769,138.1,138.07,17.38512243]
[1763309220995,201.53140254,138.26,138.09,10.1424501]
[1763309220996,1.99999999,138.21,138.09,10.1424501]
[1763309221207,17.77459406,138.24,138.09,10.1424501]
[1763309221208,9.78882769,138.15,138.12,10.1424501]
[1763309221410,10.1424501,138.19,138.14,10.1424501]
[1763309221838,10.1424501,138.16,138.1,29.8922094]
[1763309222016,0.7,138.17,138.13,10.1424501]
[1763309222332,19.93127779,138.16,138.11,10.1424501]
[1763309222513,10.1424501,138.15,138.1,10.1424501]
[1763309222714,0.7,138.18,138.12,10.1424501]
[1763309222914,10.1424501,138.18,138.13,10.1424501]
[1763309223112,10.8424501,138.18,138.14,7.23903286]
[1763309223431,0.7,138.23,138.16,10.1424501]
[1763309223611,10.1424501,138.21,138.14,26.01661502]
[1763309223816,9.78882769,138.19,138.15,10.1424501]
[1763309224120,9.78882769,138.19,138.16,10.1424501]
[1763309224628,0.7,138.21,138.17,10.1424501]
[1763309224952,0.7,138.21,138.14,47.98781502]
[1763309224953,9.78882769,138.2,138.18,10.1424501]
[1763309225133,9.78882769,138.2,138.17,10.1424501]
[1763309225333,0.7,138.24,138.19,10.1424501]
[1763309225629,0.7,138.24,138.2,10.1424501]
[1763309225630,9.78882769,138.23,138.2,10.1424501]
[1763309225833,18.2783951,138.29,138.21,10.1424501]
[1763309226032,0.2,138.29,138.23,10.1424501]
[1763309226243,11.0424501,138.29,138.24,10.1424501]
[1763309226404,0.2,138.29,138.26,10.1424501]
[1763309226600,0.2,138.29,138.27,10.1424501]
[1763309226908,0.2,138.29,138.24,10.1424501]
[1763309226909,18.27377777,138.29,138.24,10.1424501]
[1763309227105,19.93127779,138.27,138.22,10.1424501]
[1763309227308,9.78882769,138.24,138.2,10.1424501]
[1763309227717,0.7,138.23,138.19,10.1424501]
[1763309228108,0.7,138.23,138.18,7.9168666]
[1763309228332,19.93127779,138.24,138.19,10.1424501]
[1763309228729,9.78882769,138.24,138.21,10.1424501]
[1763309228930,10.48882769,138.24,138.21,10.1424501]
[1763309229133,10.48882769,138.24,138.18,25.32920992]
[1763309229310,10.48882769,138.24,138.2,10.1424501]
[1763309229509,10.48882769,138.24,138.21,10.1424501]
[1763309229711,10.48882769,138.24,138.2,10.1424501]
[1763309231133,19.93127779,138.22,138.17,22.6512]
[1763309231325,9.78882769,138.22,138.2,10.1424501]
[1763309231526,9.78882769,138.23,138.19,10.1424501]
[1763309231728,9.78882769,138.23,138.2,10.1424501]
[1763309232040,9.78882769,138.24,138.2,10.1424501]
[1763309232333,9.78882769,138.22,138.18,10.1424501]
[1763309232534,0.7,138.21,138.18,22.6512]
[1763309232712,19.93127779,138.2,138.15,10.1424501]
[1763309233116,9.78882769,138.18,138.15,10.1424501]
[1763309233317,9.78882769,138.18,138.15,17.38073718]
[1763309233833,9.78882769,138.2,138.16,10.8324501]
[1763309234033,9.78882769,138.2,138.16,0.69]
[1763309234236,19.93127779,138.18,138.13,10.1424501]
[1763309234632,10.44882769,138.18,138.13,10.1424501]
[1763309234813,20.59127779,138.18,138.13,10.1424501]
[1763309235531,9.78882769,138.16,138.14,7.23903286]
[1763309235838,9.78882769,138.17,138.14,7.23903286]
[1763309236011,10.8324501,138.2,138.15,10.8324501]
[1763309236333,19.93127779,138.19,138.14,17.38148296]
[1763309236542,10.8324501,138.22,138.17,10.1424501]
[1763309236740,20.62127779,138.21,138.17,22.6512]
[1763309236944,20.62127779,138.21,138.16,10.1424501]
[1763309237121,20.62127779,138.21,138.16,10.8324501]
[1763309237444,10.1424501,138.18,138.13,10.1424501]
[1763309237639,9.78882769,138.19,138.15,32.7936501]
[1763309238236,10.1424501,138.22,138.17,10.1424501]
[1763309238440,9.78882769,138.24,138.2,10.1424501]
[1763309238827,10.47882769,138.24,138.2,10.1424501]
[1763309239250,7.43137269,138.29,138.23,22.6512]
[1763309239251,0.89,138.29,138.23,22.6512]
[1763309239528,0.89,138.29,138.21,0.69]
[1763309239529,0.2,138.29,138.25,10.1424501]
[1763309239729,0.2,138.29,138.22,29.886043]
[1763309239730,0.2,138.29,138.27,10.1424501]
[1763309240119,0.2,138.29,138.28,10.1424501]
[1763309241027,0.2,138.29,138.28,10.8324501]
[1763309241414,0.2,138.31,138.3,22.6512]
[1763309241618,0.2,138.31,138.3,32.7936501]
[1763309241912,0.2,138.31,138.27,22.6512]
[1763309242129,0.89,138.31,138.26,29.88383285]
[1763309242335,0.89,138.31,138.28,10.1424501]
[1763309242539,0.2,138.31,138.28,10.1424501]
[1763309242723,0.69,138.3,138.26,22.6512]
[1763309242922,0.69,138.3,138.25,17.37556562]
[1763309242923,9.78882769,138.29,138.25,17.37556562]
[1763309243240,9.78882769,138.29,138.22,10.1424501]
[1763309243443,10.1424501,138.27,138.23,7.23431961]
[1763309243643,0.69,138.28,138.23,7.23431961]
[1763309243842,19.93127779,138.26,138.21,10.1424501]
[1763309244043,9.78882769,138.25,138.22,10.1424501]
[1763309245153,10.1424501,138.26,138.2,30.57708611]
[1763309245154,9.78882769,138.26,138.23,10.1424501]
[1763309245329,20.62127779,138.26,138.22,7.234843]
[1763309245535,9.78882769,138.26,138.22,17.3772931]
[1763309245741,9.78882769,138.26,138.2,22.6512]
[1763309245742,10.47882769,138.26,138.2,22.6512]
[1763309245936,9.78882769,138.24,138.2,40.02947107]
[1763309246136,9.78882769,138.24,138.19,0.69]
[1763309246333,9.78882769,138.25,138.21,10.1424501]
[1763309246537,9.78882769,138.25,138.22,10.1424501]
[1763309246746,9.78882769,138.25,138.2,0.69]
[1763309246924,9.78882769,138.25,138.19,47.97859511]
[1763309246925,9.78882769,138.25,138.21,10.1424501]
[1763309247250,9.78882769,138.26,138.22,10.1424501]
[1763309247488,9.78882769,138.26,138.23,7.23431961]
[1763309248048,9.78882769,138.27,138.24,10.1424501]
[1763309248354,9.78882769,138.27,138.22,7.23469811]
[1763309248355,0.69,138.26,138.22,7.23469811]
[1763309248559,0.69,138.26,138.23,10.1424501]
[1763309248729,9.78882769,138.27,138.23,10.1424501]
[1763309249058,0.69,138.26,138.19,0.69]
[1763309249252,0.69,138.26,138.22,10.1424501]
[1763309249552,0.69,138.26,138.22,17.37704086]
[1763309249744,9.78882769,138.27,138.23,10.1424501]
[1763309249945,10.47882769,138.27,138.23,10.1424501]
[1763309250156,10.47882769,138.27,138.24,10.1424501]
[1763309251027,9.78882769,138.25,138.2,10.1424501]
[1763309251440,9.78882769,138.23,138.2,17.37788782]
[1763309251835,7.23327458,138.25,138.15,0.69]
[1763309251836,9.78882769,138.21,138.15,0.69]
[1763309252139,9.78882769,138.21,138.19,10.1424501]
[1763309252341,10.47882769,138.2,138.14,7.23903286]
[1763309252575,10.47882769,138.2,138.15,10.1424501]
[1763309252862,10.47882769,138.2,138.16,10.1424501]
[1763309253375,9.78882769,138.22,138.18,10.1424501]
[1763309253546,9.78882769,138.22,138.18,17.37917076]
[1763309253747,0.69,138.22,138.18,17.37917076]
[1763309254054,9.78882769,138.23,138.19,10.1424501]
[1763309254238,0.2,138.31,138.2,10.1424501]
[1763309254239,10.1424501,138.25,138.2,10.1424501]
[1763309254440,10.1424501,138.25,138.21,10.1424501]
[1763309254441,9.78882769,138.25,138.21,10.1424501]
[1763309254692,9.78882769,138.25,138.22,10.1424501]
[1763309254844,0.69,138.25,138.22,10.1424501]
[1763309255043,0.69,138.25,138.21,10.1424501]
[1763309255559,0.69,138.25,138.22,17.37715268]
[1763309255791,0.69,138.25,138.21,10.1424501]
[1763309256277,18.06575313,138.25,138.19,10.1424501]
[1763309256455,9.78882769,138.24,138.2,10.1424501]
[1763309256640,10.47882769,138.24,138.2,10.1424501]
[1763309257274,9.78882769,138.22,138.2,10.1424501]
[1763309257656,0.69,138.21,138.19,10.1424501]
[1763309257857,9.78882769,138.2,138.14,0.69]
[1763309258060,10.47882769,138.2,138.14,0.69]
[1763309258255,10.47882769,138.2,138.16,10.1424501]
[1763309258882,10.47882769,138.2,138.14,0.69]
[1763309258883,0.69,138.2,138.17,10.1424501]
[1763309259652,0.69,138.26,138.19,10.1424501]
[1763309259855,9.78882769,138.25,138.18,0.69]
[1763309260374,10.47882769,138.25,138.22,10.1424501]
[1763309260755,10.8324501,138.24,138.2,10.1424501]
[1763309261079,9.78882769,138.23,138.21,10.1424501]
[1763309261461,9.78882769,138.23,138.21,17.37770198]
[1763309261661,0.69,138.24,138.21,17.37770198]
[1763309261862,9.78882769,138.25,138.21,17.37770198]
[1763309262069,9.78882769,138.23,138.21,17.37770198]
[1763309262573,9.78882769,138.27,138.22,10.8324501]
[1763309262763,9.78882769,138.27,138.24,6.35931174]
[1763309262764,0.69,138.27,138.24,6.35931174]
[1763309262966,9.78882769,138.25,138.23,6.35931174]
[1763309263266,9.78882769,138.25,138.22,67.55931174]
[1763309263467,0.69,138.25,138.22,74.79402959]
[1763309263862,9.78882769,138.27,138.23,6.35931174]
[1763309264061,9.78882769,138.27,138.22,68.43471785]
[1763309264062,10.46882769,138.27,138.22,87.20182535]
[1763309264251,10.46882769,138.27,138.24,6.35931174]
[1763309264582,9.78882769,138.25,138.23,6.35931174]
[1763309265253,22.6512,138.3,138.24,7.03931174]
[1763309265487,0.2,138.31,138.3,7.23065798]
[1763309265777,0.2,138.31,138.29,7.2310162]
[1763309266291,0.2,138.31,138.29,13.59032794]
[1763309266760,0.88,138.31,138.28,13.59087537]
[1763309266963,0.88,138.31,138.29,6.35931174]
[1763309267290,9.78882769,138.3,138.27,13.59137806]
[1763309267590,16.82813943,138.3,138.24,25.31779542]
[1763309267761,24.05905275,138.3,138.24,25.31779542]